bitfinex-derivatives/quotes_ETHF0:USTF0_20240913
["timestamp","ask_amount","ask_price","bid_price","bid_amount"]
[1726245254567,0.3884,2408.4,2408.1,3.23]
[1726245254761,1.62908146,2408.2,2408.1,6.853]
[1726245255564,2.94570114,2408.4,2408.3,0.41516]
[1726245255859,2.94570114,2408.4,2408.1,6.4378]
[1726245256057,2.94570114,2408.4,2408.2,0.41517]
[1726245256258,2.94570114,2408.4,2408.1,3.62299]
[1726245256462,2.17200114,2408.3,2408.1,3.62299]
[1726245257460,2.17200114,2408.2,2408.1,3.62299]
[1726245257663,2.17200114,2408.2,2408.1,3.2078]
[1726245258070,2.58711381,2408.2,2407.9,0.41522]
[1726245258768,1.62867015,2408.1,2407.9,0.41522]
[1726245258964,1.62867015,2408.1,2407.7,3.23]
[1726245259167,2.03307015,2408.0,2407.6,3.2078]
[1726245259671,1.62867015,2407.9,2407.8,0.41524]
[1726245259868,6.33575826,2408.4,2407.6,3.2078]
[1726245259869,1.62867015,2408.1,2407.9,0.41523]
[1726245260173,1.62867015,2408.1,2408.0,0.41522]
[1726245260366,2.96473381,2408.4,2408.1,0.4152]
[1726245260367,1.62867015,2408.2,2408.1,0.4152]
[1726245270377,1.62867015,2408.3,2408.2,0.41518]
[1726245270576,1.20795,2408.4,2407.9,6.4378]
[1726245270776,1.20795,2408.4,2408.2,0.41517]
[1726245270976,1.20795,2408.4,2408.3,0.41516]
[1726245271473,1.20795,2408.4,2408.2,0.41517]
[1726245271979,1.20795,2408.4,2408.3,0.41516]
[1726245272581,0.7928,2408.4,2408.3,0.41516]
[1726245273079,0.7928,2408.4,2407.9,7.47587]
[1726245273282,1.62652426,2408.3,2407.9,7.47587]
[1726245273488,1.62652426,2408.3,2408.2,0.41518]
[1726245273688,0.41518,2408.3,2408.1,0.41518]
[1726245273879,1.62645537,2408.2,2408.1,0.41518]
[1726245274386,1.62645537,2408.2,2408.0,0.4152]
[1726245274579,1.62645537,2408.2,2407.9,3.2078]
[1726245274779,1.62645537,2408.2,2408.1,0.4152]
[1726245275373,1.62645537,2408.3,2408.2,0.41518]
[1726245276278,1.20795,2408.4,2408.3,0.41516]
[1726245276475,0.7928,2408.4,2408.3,0.41516]
[1726245276877,0.3884,2408.4,2408.3,1.45308]
[1726245277078,4.83405889,2408.6,2408.5,0.41513]
[1726245277491,3.2078,2408.6,2408.5,0.41513]
[1726245277980,0.4058,2408.7,2408.6,0.41511]
[1726245279689,0.8209,2408.7,2408.5,3.62291]
[1726245279881,2.03205889,2408.7,2408.6,0.41511]
[1726245280285,0.4058,2408.7,2408.6,0.41511]
[1726245280484,2.03190182,2408.7,2408.6,0.41511]
[1726245281978,2.44699159,2408.7,2408.6,0.41511]
[1726245283078,0.82089,2408.7,2408.6,0.41511]
[1726245284386,0.4058,2408.7,2408.6,0.41511]
[1726245284591,2.03209247,2408.7,2408.6,0.41511]
[1726245284793,1.62629247,2408.7,2408.6,4.56711]
[1726245284982,1.62629247,2408.8,2408.7,0.41509]
[1726245285492,2.43079247,2408.9,2408.5,3.2078]
[1726245285887,2.84581247,2408.9,2408.8,0.41504]
[1726245287099,2.84581247,2408.9,2408.5,3.2078]
[1726245287699,2.43079247,2408.9,2408.8,0.41504]
[1726245289986,2.03439247,2408.9,2408.8,0.41504]
[1726245290389,0.4081,2408.9,2408.8,4.66044]
[1726245290590,0.4081,2408.9,2408.8,3.62284]
[1726245291388,1.62629247,2409.1,2409.0,0.415]
[1726245291595,2.03539247,2409.1,2409.0,0.415]
[1726245293195,0.4091,2409.1,2409.0,0.415]
[1726245294195,0.82408,2409.1,2408.8,3.2078]
[1726245294399,0.82408,2409.1,2408.9,0.41502]
[1726245294400,1.62743321,2409.0,2408.9,0.41502]
[1726245294995,0.415,2409.0,2408.9,0.41502]
[1726245295305,2.99602381,2409.1,2408.9,0.41502]
[1726245295501,2.99602381,2409.1,2408.5,4.55973]
[1726245295711,2.99602381,2409.1,2408.9,0.41501]
[1726245295904,2.99602381,2409.1,2409.0,0.415]
[1726245296398,7.14722381,2409.1,2409.0,0.415]
[1726245296793,0.415,2409.0,2408.9,0.41501]
[1726245297303,2.99602381,2409.1,2408.6,1.03768]
[1726245297513,2.99602381,2409.1,2408.9,0.41501]
[1726245297706,0.415,2409.0,2408.9,0.41501]
[1726245298302,2.99602381,2409.1,2408.9,0.41501]
[1726245300105,2.58103381,2409.1,2408.9,0.41501]
[1726245300411,0.415,2409.0,2408.9,0.41501]
[1726245300806,2.58103381,2409.1,2409.0,0.415]
[1726245300807,2.99603381,2409.1,2409.0,0.415]
[1726245301004,2.99606381,2409.1,2409.0,0.41504]
[1726245301306,6.73223381,2409.1,2408.9,0.41505]
[1726245301510,6.73223381,2409.1,2408.6,0.41511]
[1726245301511,0.41508,2408.8,2408.6,0.41511]
[1726245301813,2.00272609,2408.7,2408.6,0.41511]
[1726245302413,0.3745,2408.7,2408.6,0.41511]
[1726245303208,2.0028937,2408.7,2408.6,0.41511]
[1726245304404,0.3745,2408.7,2408.6,0.41511]
[1726245304727,2.00295393,2408.7,2408.6,0.41511]
[1726245305110,0.3745,2408.7,2408.6,0.41511]
[1726245305608,2.00299652,2408.7,2408.6,0.41511]
[1726245306017,4.5265,2408.7,2408.4,4.11]
[1726245306204,0.41515,2408.4,2408.1,0.4152]
[1726245306512,2.03593497,2408.3,2408.1,0.4152]
[1726245306709,2.43563497,2408.3,2408.2,0.41518]
[1726245306907,2.02853497,2408.3,2408.2,0.41518]
[1726245308614,0.3997,2408.3,2408.2,0.41518]
[1726245309914,0.3997,2408.3,2408.1,0.41519]
[1726245310113,0.3997,2408.3,2408.2,0.41518]
[1726245310617,8.79743,2408.3,2407.8,3.2078]
[1726245310819,1.62922147,2407.9,2407.8,3.2078]
[1726245311114,1.62922147,2407.9,2407.8,3.62305]
[1726245312315,0.41523,2407.9,2407.8,3.62305]
[1726245312522,2.17193381,2408.0,2407.8,3.62305]
[1726245312715,0.41523,2407.9,2407.8,3.2078]
[1726245313012,0.41525,2407.8,2407.7,0.41525]
[1726245313213,2.04440251,2407.8,2407.7,0.41525]
[1726245313412,1.62887509,2407.8,2407.7,0.41525]
[1726245313819,2.04417308,2407.8,2407.7,0.41525]
[1726245314016,0.81034,2407.9,2407.4,4.2683]
[1726245314214,1.62891738,2407.7,2407.6,0.41528]
[1726245315219,1.62891738,2407.8,2407.7,0.41527]
[1726245315419,1.62848586,2407.8,2407.7,0.41527]
[1726245317913,2.02282093,2407.9,2407.8,0.41525]
[1726245318220,0.3951,2407.9,2407.8,0.41525]
[1726245318825,2.04294093,2408.0,2407.9,0.41523]
[1726245319122,0.385,2408.0,2407.6,6.8122]
[1726245319317,2.01255606,2408.0,2407.9,0.41523]
[1726245320414,1.62755606,2408.1,2408.0,0.41522]
[1726245320612,1.62755606,2408.2,2408.1,0.4152]
[1726245320822,4.83535606,2408.3,2408.2,0.41518]
[1726245321121,3.5852,2408.3,2408.2,0.41518]
[1726245321521,4.00036,2408.3,2408.1,0.41518]
[1726245321727,3.5852,2408.3,2408.2,0.41518]
[1726245322415,5.21241568,2408.3,2408.2,0.41518]
[1726245322613,5.62757568,2408.3,2408.1,0.41519]
[1726245323525,3.5852,2408.3,2408.2,0.41518]
[1726245323730,5.21236072,2408.3,2408.2,0.41518]
[1726245325314,5.62752072,2408.3,2408.1,0.41518]
[1726245325515,3.5852,2408.3,2408.2,0.41518]
[1726245325730,5.21232205,2408.3,2408.2,0.41518]
[1726245326226,5.62748205,2408.3,2408.2,0.41518]
[1726245326622,5.21230511,2408.3,2408.2,0.41518]
[1726245327023,5.37973381,2408.3,2408.2,0.41518]
[1726245327220,3.2078,2408.3,2408.2,0.41518]
[1726245327822,2.95953381,2408.4,2408.0,1.03804]
[1726245328017,2.95953381,2408.4,2408.3,0.41516]
[1726245328230,3.37468381,2408.4,2408.3,0.41516]
[1726245328434,3.37468381,2408.4,2408.0,1.03804]
[1726245328435,7.52668381,2408.4,2408.2,0.41517]
[1726245328637,2.17193381,2408.3,2408.2,0.41517]
[1726245328819,1.20275,2408.4,2408.2,0.41517]
[1726245328820,3.37468381,2408.4,2408.2,0.41517]
[1726245329026,2.17193381,2408.3,2408.2,0.41517]
[1726245329225,2.58709381,2408.3,2408.2,0.41517]
[1726245329521,2.17193381,2408.3,2408.2,0.41517]
[1726245329733,2.58709381,2408.3,2408.2,0.41517]
[1726245329928,4.152,2408.3,2408.1,0.41519]
[1726245330129,5.37723342,2408.2,2407.8,3.2078]
[1726245330338,0.41525,2407.8,2407.7,0.41525]
[1726245330528,8.60723342,2407.9,2407.3,0.4713]
[1726245330833,1.20678,2407.7,2407.6,0.41528]
[1726245331031,1.20678,2407.7,2407.3,1.03835]
[1726245331032,1.03823,2407.6,2407.2,3.2078]
[1726245331232,1.62694069,2407.3,2407.2,3.2078]
[1726245331436,2.16925426,2407.4,2407.3,0.41534]
[1726245331622,2.58456426,2407.5,2407.3,0.41534]
[1726245332229,2.16925426,2407.5,2407.2,3.2078]
[1726245332432,1.62650454,2407.3,2407.2,3.62315]
[1726245333540,1.62650454,2407.4,2407.3,0.41534]
[1726245333731,5.78745426,2407.6,2407.4,0.41532]
[1726245333932,4.03349,2407.6,2407.2,3.2078]
[1726245334131,5.65895283,2407.6,2407.4,0.41531]
[1726245334331,5.65895283,2407.6,2407.5,0.4153]
[1726245334639,5.65895283,2407.6,2407.4,0.41531]
[1726245334835,5.24366283,2407.6,2407.5,0.4153]
[1726245335045,5.65894283,2407.6,2407.5,0.4153]
[1726245335241,9.81254283,2407.6,2407.4,0.41531]
[1726245335541,5.65894283,2407.6,2407.4,0.41531]
[1726245336239,5.24366283,2407.6,2407.5,0.4153]
[1726245336440,3.6182,2407.6,2407.5,0.4153]
[1726245336938,3.2078,2407.6,2407.5,0.4153]
[1726245337329,0.41524,2407.9,2407.6,1.03822]
[1726245337330,1.62546283,2407.9,2407.6,1.03822]
[1726245337532,2.54965426,2408.1,2407.9,0.41523]
[1726245337533,2.03336283,2408.0,2407.9,0.41523]
[1726245337945,0.4079,2408.0,2407.9,0.41523]
[1726245338134,2.44858283,2408.0,2407.8,0.41524]
[1726245338334,5.65638283,2408.0,2407.8,0.41524]
[1726245338836,5.65638283,2408.0,2407.7,0.41526]
[1726245338837,2.04070283,2407.9,2407.7,0.41526]
[1726245339038,1.62546283,2407.9,2407.3,5.14835]
[1726245339236,2.04071283,2407.8,2407.6,0.41527]
[1726245340243,0.41527,2407.7,2407.5,0.41529]
[1726245340438,0.379,2407.6,2407.5,0.41529]
[1726245342133,2.00446283,2407.6,2407.5,0.4153]
[1726245342336,2.00446283,2407.6,2407.4,0.41531]
[1726245342557,0.407,2407.5,2407.4,0.41531]
[1726245343141,2.03246283,2407.5,2407.4,0.41531]
[1726245343849,2.44776283,2407.5,2407.3,0.41532]
[1726245344044,0.407,2407.5,2407.4,0.41532]
[1726245344241,1.62546283,2407.6,2407.5,0.4153]
[1726245344441,2.38775573,2407.7,2407.3,4.26833]
[1726245344648,2.38775573,2407.7,2407.6,0.41528]
[1726245345757,2.00265573,2407.7,2407.6,0.41528]
[1726245345943,0.3765,2407.7,2407.6,0.41528]
[1726245346247,2.00265573,2407.7,2407.6,0.41528]
[1726245346952,0.3765,2407.7,2407.6,0.41528]
[1726245348647,1.62656341,2407.7,2407.6,5.6071]
[1726245348848,1.62656341,2407.8,2407.7,0.41527]
[1726245349043,1.62656341,2407.8,2407.7,2.49161]
[1726245349239,1.62656341,2408.0,2407.9,1.45332]
[1726245349437,1.62656341,2408.1,2408.0,0.41522]
[1726245349650,2.02066341,2408.2,2408.1,0.4152]
[1726245351747,1.62656341,2408.2,2408.1,1.4532]
[1726245351948,1.62656341,2408.2,2408.1,9.1282]
[1726245352145,1.62656341,2408.2,2408.1,8.0902]
[1726245352655,1.62656341,2408.3,2408.2,0.41518]
[1726245352853,2.00646341,2408.4,2408.3,0.41516]
[1726245353157,0.3799,2408.4,2408.3,0.41516]
[1726245355256,0.3799,2408.4,2408.1,3.623]
[1726245355452,1.62834208,2408.2,2408.1,3.62299]
[1726245355953,1.62834208,2408.2,2407.8,1.44943]
[1726245355954,0.41518,2408.2,2407.8,0.097]
[1726245356255,0.4106,2408.1,2408.0,0.41521]
[1726245356655,7.28075826,2408.1,2407.7,3.2078]
[1726245356851,2.17093725,2407.9,2407.8,0.41525]
[1726245358050,1.22942,2408.0,2407.8,0.41525]
[1726245358362,3.94677826,2408.0,2407.8,0.41525]
[1726245358655,3.94677826,2408.0,2407.8,0.41524]
[1726245359153,0.41524,2407.9,2407.7,3.62306]
[1726245359356,2.17008609,2407.8,2407.7,3.62306]
[1726245359551,2.16993176,2407.8,2407.7,3.2078]
[1726245359753,4.1536,2407.8,2407.7,3.62306]
[1726245359950,3.13260826,2407.9,2407.7,3.62306]
[1726245360153,2.71735826,2407.9,2407.8,0.41525]
[1726245360651,3.53155826,2408.0,2407.9,0.41523]
[1726245361251,0.8142,2408.0,2407.9,0.41523]
[1726245361555,3.12795826,2408.1,2408.0,0.41522]
[1726245361556,2.71735826,2408.1,2408.0,0.41522]
[1726245361853,2.170916,2408.1,2408.0,0.41522]
[1726245362155,3.11695826,2408.3,2408.2,0.41518]
[1726245362753,2.71359187,2408.5,2408.4,0.41515]
[1726245363150,3.11319187,2408.6,2408.5,0.41513]
[1726245363850,0.3996,2408.6,2408.5,0.41513]
[1726245364051,3.11319187,2408.6,2408.5,0.41513]
[1726245364262,0.3996,2408.6,2408.5,0.41513]
[1726245365560,0.3996,2408.6,2408.5,1.45296]
[1726245366063,2.56273262,2408.9,2408.8,0.41508]
[1726245366251,2.93603262,2408.9,2408.7,0.41509]
[1726245366449,0.4151,2408.7,2408.3,3.2078]
[1726245366654,0.3784,2408.6,2408.5,0.41512]
[1726245367156,0.79351,2408.6,2408.5,0.41512]
[1726245367467,0.3784,2408.6,2408.5,0.41512]
[1726245370365,0.41514,2408.5,2408.3,0.41515]
[1726245370657,0.4111,2408.4,2408.3,0.41515]
[1726245370851,0.7938,2408.4,2408.3,0.41515]
[1726245372854,1.20895,2408.4,2407.9,11.68287]
[1726245373054,0.7938,2408.4,2407.9,1.03807]
[1726245373255,0.7938,2408.4,2408.1,0.41519]
[1726245373256,0.41517,2408.3,2408.1,0.41519]
[1726245373466,0.41518,2408.3,2408.1,0.41519]
[1726245373659,4.0016,2408.4,2408.2,0.41518]
[1726245373660,1.20896,2408.4,2408.2,0.41518]
[1726245373852,1.20896,2408.4,2408.3,0.41516]
[1726245374093,1.20895,2408.4,2408.3,0.41516]
[1726245374260,0.7938,2408.4,2408.3,0.41516]
[1726245375655,0.4111,2408.4,2408.3,0.41516]
[1726245375857,0.3784,2408.6,2408.5,0.41513]
[1726245376159,0.7778,2408.6,2408.5,0.41513]
[1726245377664,5.34491,2408.6,2408.4,0.41514]
[1726245377857,1.19291,2408.6,2408.4,0.41513]
[1726245378668,1.19291,2408.6,2408.5,0.41513]
[1726245378867,1.19291,2408.6,2408.2,4.24576]
[1726245379263,1.19291,2408.6,2408.4,0.41513]
[1726245379470,3.36254262,2408.6,2408.4,0.41513]
[1726245379667,6.57034262,2408.6,2408.5,0.41513]
[1726245379871,6.57034262,2408.6,2407.9,4.52523]
[1726245379872,0.4152,2408.1,2407.9,4.52523]
[1726245380076,2.16839139,2408.4,2408.2,0.41517]
[1726245380270,2.16839139,2408.4,2407.9,1.03809]
[1726245380271,2.16839139,2408.4,2407.9,4.24589]
[1726245380573,0.41516,2408.4,2408.2,0.41518]
[1726245380764,0.80906,2408.3,2408.1,0.41518]
[1726245381268,2.97745139,2408.3,2408.1,0.41518]
[1726245381463,2.97745139,2408.3,2407.9,3.2078]
[1726245381663,2.56229139,2408.3,2408.2,0.41518]
[1726245381868,0.3939,2408.3,2408.2,0.41518]
[1726245382573,2.56229139,2408.3,2408.2,0.41518]
[1726245383373,2.97746139,2408.3,2408.1,0.41519]
[1726245384369,0.41518,2408.2,2408.1,0.41519]
[1726245384564,0.4152,2408.1,2407.9,3.2078]
[1726245384761,0.7915,2408.1,2407.9,0.41522]
[1726245384961,0.7915,2408.1,2407.8,0.41524]
[1726245385166,0.41523,2408.0,2407.8,0.41524]
[1726245385468,0.7915,2408.1,2407.8,0.41524]
[1726245385469,0.41523,2407.9,2407.8,0.41524]
[1726245385673,0.3833,2407.9,2407.8,0.41524]
[1726245385969,0.3833,2407.9,2407.6,3.2078]
[1726245385970,0.3833,2407.9,2407.7,0.41526]
[1726245386171,0.79854,2407.9,2407.7,0.41526]
[1726245386370,0.79854,2407.9,2407.6,3.2078]
[1726245386371,0.3833,2407.9,2407.6,3.62307]
[1726245386668,0.41529,2407.6,2407.5,0.4153]
[1726245387069,0.4153,2407.5,2407.2,0.097]
[1726245387282,0.3833,2407.4,2407.3,0.41532]
[1726245387774,0.79862,2407.4,2407.3,0.41534]
[1726245387966,0.3833,2407.4,2407.3,0.41534]
[1726245388166,0.79862,2407.4,2407.3,0.41534]
[1726245388367,0.79862,2407.4,2407.2,0.41534]
[1726245388564,0.79862,2407.4,2407.1,3.2078]
[1726245388970,0.401,2407.5,2407.3,0.41534]
[1726245389169,2.98805139,2407.8,2407.4,3.64532]
[1726245389373,2.98805139,2407.8,2407.6,0.41528]
[1726245389374,0.3909,2407.7,2407.6,0.41528]
[1726245389765,0.80617,2407.7,2407.6,0.41528]
[1726245390366,0.4153,2407.6,2407.4,3.2078]
[1726245390568,3.59747139,2407.7,2407.4,0.41531]
[1726245390776,0.4153,2407.5,2407.4,0.41531]
[1726245392274,0.4153,2407.5,2407.3,0.41532]
[1726245392476,0.3944,2407.4,2407.3,0.41532]
[1726245393968,3.59747139,2407.7,2407.6,0.41528]
[1726245393969,2.55929139,2407.7,2407.6,0.41528]
[1726245394173,0.3909,2407.7,2407.6,0.41528]
[1726245396579,0.80617,2407.7,2407.6,0.41528]
[1726245396783,0.3909,2407.7,2407.6,0.41528]
[1726245397172,0.80617,2407.7,2407.4,3.2078]
[1726245397371,0.41529,2407.6,2407.4,3.2078]
[1726245397573,0.3909,2407.7,2407.5,0.41528]
[1726245397783,0.41528,2407.6,2407.5,0.41528]
[1726245398375,0.80618,2407.7,2407.5,0.41528]
[1726245398675,0.41528,2407.6,2407.5,0.41529]
[1726245398982,0.80618,2407.7,2407.6,0.41528]
[1726245399284,0.80618,2407.7,2407.3,1.03834]
[1726245399491,0.80618,2407.7,2407.5,0.41529]
[1726245399782,0.80618,2407.7,2407.6,0.41528]
[1726245399983,0.41528,2407.6,2407.5,0.41529]
[1726245400479,0.41528,2407.6,2407.4,0.4153]
[1726245400679,0.41528,2407.6,2407.5,0.4153]
[1726245401379,0.80618,2407.7,2407.5,0.4153]
[1726245401684,0.41528,2407.6,2407.5,0.4153]
[1726245401980,0.41531,2407.5,2407.2,3.23]
[1726245402177,0.41531,2407.5,2407.3,0.41532]
[1726245402382,0.3849,2407.4,2407.3,0.41532]
[1726245404082,0.41535,2407.2,2407.0,0.41538]
[1726245404381,0.393,2407.3,2406.9,0.6878]
[1726245404689,0.4042,2407.2,2407.1,0.41537]
[1726245408089,0.4042,2407.2,2407.1,3.62317]
[1726245408386,0.80022,2407.4,2407.1,3.62316]
[1726245408587,0.80023,2407.4,2407.1,3.62316]
[1726245408889,0.41535,2407.3,2407.1,3.2078]
[1726245409081,0.3849,2407.4,2406.8,3.2078]
[1726245409276,0.41535,2407.3,2406.8,3.2078]
[1726245409789,0.41535,2407.3,2407.0,0.41538]
[1726245409993,0.3849,2407.4,2407.1,3.2078]
[1726245410284,0.3849,2407.4,2407.2,0.41534]
[1726245411193,0.80022,2407.4,2407.2,0.41534]
[1726245411389,0.80022,2407.4,2407.1,3.62316]
[1726245412089,0.41534,2407.3,2407.1,0.41536]
[1726245412895,0.41534,2407.3,2406.9,0.41539]
[1726245412896,0.41537,2407.1,2406.9,0.41539]
[1726245413087,0.3856,2407.0,2406.9,0.41539]
[1726245413286,0.3856,2407.0,2406.9,0.4154]
[1726245414485,0.7741,2407.0,2406.9,0.4154]
[1726245415097,0.41543,2406.8,2406.6,0.41545]
[1726245416783,3.23,2406.9,2406.5,4.11]
[1726245416991,4.24636,2406.8,2406.3,0.097]
[1726245417290,0.41546,2406.6,2406.4,0.41548]
[1726245417491,0.4031,2406.5,2406.4,0.41548]
[1726245418497,0.4107,2406.6,2406.5,0.41547]
[1726245419300,0.4031,2406.7,2406.5,0.41547]
[1726245419600,0.81854,2406.7,2406.5,0.41547]
[1726245419794,0.41546,2406.6,2406.5,0.41547]
[1726245419994,0.81626,2406.6,2406.5,0.41547]
[1726245420291,0.81626,2406.6,2406.4,0.41548]
[1726245420485,0.4031,2406.7,2406.6,0.41546]
[1726245420486,0.81854,2406.7,2406.6,0.41546]
[1726245420687,0.4031,2406.7,2406.6,0.41546]
[1726245421092,0.4031,2406.7,2406.5,0.41546]
[1726245421296,0.41546,2406.6,2406.5,0.41546]
[1726245421499,0.41546,2406.6,2406.4,3.62328]
[1726245421889,0.81855,2406.7,2406.5,0.41547]
[1726245422091,0.41546,2406.6,2406.4,3.2078]
[1726245422291,0.41547,2406.5,2406.3,0.4155]
[1726245422498,0.3835,2406.5,2406.3,0.4155]
[1726245422702,0.4099,2406.4,2406.3,0.41551]
[1726245422889,0.4099,2406.4,2406.2,0.41552]
[1726245423091,0.4099,2406.4,2405.9,5.14895]
[1726245423298,0.4099,2406.4,2406.0,0.3139]
[1726245423496,0.4099,2406.4,2406.3,0.41551]
[1726245424204,0.82539,2406.4,2406.1,0.41553]
[1726245424497,0.82541,2406.4,2406.1,0.41553]
[1726245425296,0.41551,2406.3,2406.0,0.41555]
[1726245425501,0.3887,2406.2,2406.0,0.41555]
[1726245426505,0.4099,2406.4,2405.9,4.11]
[1726245426713,0.4099,2406.4,2406.1,0.41553]
[1726245426714,0.3994,2406.3,2406.1,0.41553]
[1726245427005,0.41553,2406.2,2406.0,3.2078]
[1726245427305,0.4098,2406.1,2405.9,4.11]
[1726245427506,0.41558,2405.9,2405.6,0.097]
[1726245427711,1.2138,2405.8,2405.5,0.41564]
[1726245427906,0.7982,2405.8,2405.5,3.2078]
[1726245428106,0.7982,2405.8,2405.7,0.41561]
[1726245428309,1.21379,2405.8,2405.5,3.62344]
[1726245428497,0.7982,2405.8,2405.5,3.62344]
[1726245428904,0.7982,2405.8,2405.5,3.2078]
[1726245429107,0.41562,2405.7,2405.4,0.41566]
[1726245429407,0.3971,2405.6,2405.3,0.41567]
[1726245429602,0.3971,2405.6,2405.3,0.41566]
[1726245429804,0.3971,2405.6,2405.2,3.2078]
[1726245430407,4.04273,2405.6,2405.2,3.2078]
[1726245430615,4.04273,2405.6,2405.2,3.62348]
[1726245431112,3.6271,2405.6,2405.2,3.6235]
[1726245431305,3.64568,2405.4,2404.9,0.51274]
[1726245431500,3.64568,2405.4,2404.8,4.11]
[1726245431501,4.005,2405.3,2404.7,0.6876]
[1726245431702,3.23,2405.2,2404.6,3.3048]
[1726245432008,3.23,2405.0,2404.6,3.62359]
[1726245432205,0.80662,2405.1,2404.6,3.2078]
[1726245432411,4.005,2405.3,2404.8,3.23]
[1726245432605,4.005,2405.3,2405.0,0.41573]
[1726245432810,3.23,2405.2,2404.6,3.72059]
[1726245433112,4.005,2405.3,2404.6,3.62359]
[1726245433113,3.23,2405.0,2404.6,3.62359]
[1726245433309,3.23,2405.0,2404.6,3.2078]
[1726245433517,0.7832,2404.9,2404.4,0.51283]
[1726245433720,3.619,2404.8,2404.5,0.41582]
[1726245433904,3.619,2404.8,2404.3,3.84772272]
[1726245433905,3.619,2404.8,2404.4,0.41584]
[1726245434104,3.619,2404.8,2404.5,0.41581]
[1726245434309,6.849,2404.8,2404.5,0.41582]
[1726245434606,3.619,2404.8,2404.5,0.41582]
[1726245435112,3.619,2404.8,2404.3,3.2078]
[1726245435113,0.4112,2404.8,2404.7,0.41578]
[1726245436008,0.4112,2404.8,2404.6,0.41579]
[1726245436211,0.4112,2404.8,2404.6,0.4158]
[1726245436514,0.4112,2404.8,2404.5,0.41581]
[1726245436708,0.4112,2404.8,2404.3,3.2078]
[1726245437319,0.4112,2404.8,2404.7,0.41578]
[1726245437519,0.4112,2404.8,2404.6,0.41579]
[1726245437712,0.4112,2404.8,2404.3,3.2078]
[1726245437917,0.4112,2404.8,2404.5,0.41581]
[1726245438113,0.82697,2404.8,2404.5,0.41581]
[1726245438306,0.4112,2404.8,2404.4,0.41583]
[1726245438609,0.82698,2404.8,2404.5,0.41581]
[1726245438818,1.03113507,2404.8,2404.5,0.41581]
[1726245439319,0.61535507,2404.8,2404.6,0.4158]
[1726245439520,1.03112507,2404.8,2404.5,0.41581]
[1726245439721,0.61535507,2404.8,2404.3,3.2078]
[1726245440015,0.4112,2404.8,2404.7,0.41578]
[1726245441814,0.4112,2404.8,2404.7,3.62358]
[1726245442214,0.4112,2404.8,2404.7,0.41578]
[1726245443409,0.4112,2404.8,2404.6,3.2078]
[1726245443614,0.4112,2404.8,2404.3,1.03963]
[1726245443809,0.4112,2404.8,2404.5,3.2078]
[1726245444017,0.4112,2404.8,2404.6,0.41579]
[1726245444626,0.4112,2404.8,2404.7,0.41578]
[1726245444926,0.4112,2404.8,2404.6,0.41579]
[1726245445219,0.61919187,2404.8,2404.6,0.41579]
[1726245445419,1.03496187,2404.8,2404.5,0.41581]
[1726245445727,3.23,2404.6,2404.2,3.3048]
[1726245445922,0.3843,2404.5,2404.0,4.11]
[1726245446121,0.7911,2404.5,2404.0,4.11]
[1726245446425,0.7911,2404.5,2404.3,0.41585]
[1726245446611,4.9503,2404.5,2404.2,0.41586]
[1726245446809,0.7911,2404.5,2404.2,0.41586]
[1726245447022,3.9989,2404.5,2404.0,4.11]
[1726245447414,3.9989,2404.5,2404.2,0.41586]
[1726245447628,4.41472,2404.5,2404.1,0.41589]
[1726245447820,0.41586,2404.3,2403.9,0.41591]
[1726245448013,0.4045,2404.2,2403.8,6.4378]
[1726245448319,0.4045,2404.2,2404.1,0.41589]
[1726245448619,3.9989,2404.5,2404.4,0.41584]
[1726245448814,4.4034,2404.5,2404.2,0.41587]
[1726245449619,4.0191,2404.5,2404.2,0.41587]
[1726245449819,4.0191,2404.5,2404.3,0.41585]
[1726245450021,3.2078,2405.3,2404.4,6.4378]
[1726245450226,0.7519,2405.2,2404.7,3.2078]
[1726245450525,0.3777,2405.2,2405.1,0.41572]
[1726245450726,0.3777,2405.2,2405.1,3.62352]
[1726245450923,0.3777,2405.2,2405.0,3.2078]
[1726245451121,0.3777,2405.2,2405.1,0.41572]
[1726245451314,0.78984,2405.6,2405.3,0.41567]
[1726245451518,0.3742,2405.6,2405.1,0.3135]
[1726245451718,6.4378,2405.7,2405.6,0.41563]
[1726245451719,3.2078,2405.7,2405.6,0.41563]
[1726245452427,0.41558,2405.9,2405.6,0.41562]
[1726245452621,0.81578,2405.9,2405.6,0.41562]
[1726245453127,0.4002,2405.9,2405.5,3.2078]
[1726245453320,0.4002,2405.9,2405.7,0.4156]
[1726245453525,0.4002,2405.9,2405.8,0.41559]
[1726245453818,3.2078,2406.0,2405.8,0.41559]
[1726245454018,3.2078,2406.0,2405.9,0.41558]
[1726245454217,3.2078,2406.0,2405.8,0.41559]
[1726245454630,3.2078,2406.0,2405.9,0.41558]
[1726245454818,3.2078,2406.0,2405.8,0.41558]
[1726245455017,1.00231307,2406.2,2405.9,0.41558]
[1726245455223,1.00231307,2406.2,2405.8,0.41558]
[1726245455624,1.00231307,2406.2,2405.9,0.41557]
[1726245455826,0.58678307,2406.2,2405.6,1.03908]
[1726245456026,0.58678307,2406.2,2405.9,0.41557]
[1726245456819,0.58678307,2406.2,2406.0,0.41555]
[1726245456820,0.3777,2406.2,2406.0,0.41555]
[1726245457227,0.3777,2406.2,2406.1,0.41554]
[1726245457624,3.23,2406.7,2406.1,1.03886]
[1726245457929,1.22146,2406.6,2406.3,0.4155]
[1726245458519,0.806,2406.6,2406.4,0.41548]
[1726245458722,1.22146,2406.6,2406.3,0.4155]
[1726245458934,1.22146,2406.6,2405.9,4.11]
[1726245458935,1.84467,2406.6,2405.9,4.11]
[1726245459124,1.84467,2406.6,2406.1,3.62333]